Workbook

Sheet 目录
A1: 目录
A2: 附表3-1 | B2: 部门预算收支总表
A3: 附表3-2 | B3: 部门预算收入总表
A4: 附表3-3 | B4: 部门预算支出总表
A5: 附表3-4 | B5: 部门预算财政拨款收支总表
A6: 附表3-5 | B6: 部门预算一般公共预算财政拨款支出表
A7: 附表3-6 | B7: 部门预算一般公共预算财政拨款基本支出表
A8: 附表3-7 | B8: 部门预算政府性基金预算财政拨款支出表
A9: 附表3-8 | B9: 部门预算国有资本经营预算财政拨款支出表
A10: 附表3-9 | B10: 部门预算财政拨款“三公”经费支出表

Sheet 附表3-1
A1: 附表3-1
A2: 部门预算收支总表
D3: 公开01表
D4: 单位：万元
A5: 收入 | C5: 支出
A6: 项 目 | B6: 预算数 | C6: 项 目 | D6: 预算数
A7: 一、财政拨款收入 | B7: 5010.96 | C7: 一、一般公共服务支出 | D7: 478.68
A8: 二、上级补助收入 | C8: 二、外交支出
A9: 三、事业收入 | C9: 三、国防支出
A10: 四、经营收入 | C10: 四、公共安全支出
A11: 五、附属单位上缴收入 | C11: 五、教育支出
A12: 六、其他收入 | C12: 六、科学技术支出
C13: 七、文化体育与传媒支出
C14: 八、社会保障和就业支出 | D14: 62.43
C15: 九、医疗卫生与计划生育支出 | D15: 81.35
C16: 十、节能环保支出
C17: 十一、城乡社区支出 | D17: 4239.89
C18: 十二、农林水支出 | D18: 128.61
C19: 十三、交通运输支出
C20: 十四、资源勘探信息等支出
C21: 十五、商业服务业等支出
C22: 十六、金融支出
C23: 十七、援助其他地区支出
C24: 十八、国土海洋气象等支出
C25: 十九、住房保障支出 | D25: 20
C26: 二十、粮油物资储备支出
C27: 二十一、国债还本付息支出
C28: 二十二、其他支出
A29: 本年收入合计 | B29: =SUM(B7:B28) -> 5010.96 | C29: 本年支出合计 | D29: =SUM(D7:D28) -> 5010.96
A30: 用事业基金弥补收支差额 | C30: 结余分配
A31: 年初结转和结余 | C31: 年末结转和结余
A32: 合计 | B32: =SUM(B29:B31) -> 5010.96 | C32: 合计 | D32: =SUM(D29:D31) -> 5010.96

Sheet 附表3-2
A1: 附表3-2
A2: 部门预算收入总表
J3: 公开02表
J4: 单位：万元
A5: 科目 | D5: 本年收入合计 | E5: 财政拨款收入 | F5: 上级补助收入 | G5: 事业收入 | H5: 经营收入 | I5: 附属单位上缴收入 | J5: 其他收入
A6: 功能分类科目编码 | C6: 科目名称
A8: 合计 | D8: =SUM(D9:D23) -> 5010.96 | E8: =SUM(E9:E23) -> 5010.96
A9: 2010301 | C9: 行政运行 | D9: 386.78 | E9: 386.78
A10: 2101101 | C10: 行政单位医疗 | D10: 24.83 | E10: 24.83
A11: 2210201 | C11: 住房公积金 | D11: 20.00 | E11: 20.00
A12: 2130705 | C12: 对村民委员会和村党支部的补助 | D12: 128.35 | E12: 128.35
A13: 2010302 | C13: 一般行政管理事务 | D13: 61.90 | E13: 61.90
A14: 2100717 | C14: 计划生育事务 | D14: 56.52 | E14: 56.52
A15: 2082102 | C15: 农村特困人员救助供养指出 | D15: 1.67 | E15: 1.67
A16: 2080803 | C16: 在乡复原、退伍军人生活补贴 | D16: 0.21 | E16: 0.21
A17: 2080902 | C17: 军队移交政府的离退休人员安置 | D17: 2.63 | E17: 2.63
A18: 2120399 | C18: 其他城乡社区公共设施支出 | D18: 5.20 | E18: 5.20
A19: 2010308 | C19: 信访事务 | D19: 30.00 | E19: 30.00
A20: 2080805 | C20: 义务兵优抚 | D20: 57.92 | E20: 57.92
A21: 2120804 | C21: 农村基础设施建设支出 | D21: 106.00 | E21: 106.00
A22: 2120801 | C22: 征地和拆迁补偿指出 | D22: 4128.69 | E22: 4128.69
A23: 2130152 | C23: 对高校毕业生到基层任职补助 | D23: 0.26 | E23: 0.26

Sheet 附表3-3
A1: 附表3-3
A2: 部门预算支出总表
I3: 公开03表
I4: 单位：万元
A5: 科目 | D5: 本年支出合计 | E5: 基本支出 | F5: 项目支出 | G5: 上缴上级支出 | H5: 经营支出 | I5: 对附属单位补助支出
A6: 功能分类科目编码 | C6: 科目名称
A8: 合计 | D8: =SUM(D9+D14+D16+D24) -> 5010.96 | E8: =SUM(E9+E14+E16+E24) -> 503.58 | F8: =SUM(F9+F14+F16+F24) -> 4507.38
C9: 人员经费 | D9: =SUM(D10:D13) -> 456.91 | E9: =SUM(E10:E13) -> 456.91
A10: 2010301 | C10: 行政运行 | D10: 340.11 | E10: 340.11
A11: 2101101 | C11: 行政单位医疗 | D11: 24.83 | E11: 24.83
A12: 2210201 | C12: 住房公积金 | D12: 20.00 | E12: 20.00
A13: 2130705 | C13: 对村民委员会和村党支部的补助 | D13: 71.97 | E13: 71.97
C14: 日常公用经费 | D14: 46.67 | E14: 46.67
A15: 2010301 | C15: 行政运行 | D15: 46.67 | E15: 46.67
C16: 专项公用 | D16: =SUM(D17:D23) -> 131.61 | F16: =SUM(F17:F23) -> 131.61
A17: 2010302 | C17: 一般行政管理事务 | D17: 27.00 | F17: 27.00
A18: 2100717 | C18: 计划生育事务 | D18: 56.52 | F18: 56.52
A19: 2082102 | C19: 农村特困人员救助供养指出 | D19: 1.67 | F19: 1.67
A20: 2130705 | C20: 对村民委员会和村党支部的补助 | D20: 38.38 | F20: 38.38
A21: 2080803 | C21: 在乡复原、退伍军人生活补贴 | D21: 0.21 | F21: 0.21
A22: 2080902 | C22: 军队移交政府的离退休人员安置 | D22: 2.63 | F22: 2.63
A23: 2120399 | C23: 其他城乡社区公共设施支出 | D23: 5.20 | F23: 5.20
C24: 专项项目 | D24: =SUM(D25:D31) -> 4375.77 | F24: =SUM(F25:F31) -> 4375.77
A25: 2010308 | C25: 信访事务 | D25: 30.00 | F25: 30.00
A26: 2130705 | C26: 对村民委员会和村党支部的补助 | D26: 18.00 | F26: 18.00
A27: 2080805 | C27: 义务兵优抚 | D27: 57.92 | F27: 57.92
A28: 2010302 | C28: 一般行政管理事务 | D28: 34.90 | F28: 34.90
A29: 2120804 | C29: 农村基础设施建设支出 | D29: 106.00 | F29: 106.00
A30: 2120801 | C30: 征地和拆迁补偿指出 | D30: 4128.69 | F30: 4128.69
A31: 2130152 | C31: 对高校毕业生到基层任职补助 | D31: 0.26 | F31: 0.26

Sheet 附表3-4
A1: 附表3-4
A2: 部门预算财政拨款收支总表
G3: 公开04表
G4: 单位：万元
A5: 收入 | C5: 支出
A6: 项 目 | B6: 金额 | C6: 项 目 | D6: 合计 | E6: 一般公共预算财政拨款 | F6: 政府性基金预算财政拨款 | G6: 国有资本经营预算财政拨款
A7: 一、一般公共预算财政拨款 | B7: 776.27 | C7: 一、一般公共服务支出 | D7: =SUM(E7:G7) -> 478.68 | E7: 478.68
A8: 二、政府性基金预算财政拨款 | B8: 4234.69 | C8: 二、外交支出
A9: 三、国有资本经营预算财政拨款 | C9: 三、国防支出
C10: 四、公共安全支出
C11: 五、教育支出
C12: 六、科学技术支出
C13: 七、文化体育与传媒支出
C14: 八、社会保障和就业支出 | D14: =SUM(E14:G14) -> 62.43 | E14: 62.43
C15: 九、医疗卫生与计划生育支出 | D15: =SUM(E15:G15) -> 81.35 | E15: 81.35
C16: 十、节能环保支出
C17: 十一、城乡社区支出 | D17: =SUM(E17:G17) -> 4239.89 | E17: 5.2 | F17: 4234.69
C18: 十二、农林水支出 | D18: =SUM(E18:G18) -> 128.61 | E18: 128.61
C19: 十三、交通运输支出
C20: 十四、资源勘探信息等支出
C21: 十五、商业服务业等支出
C22: 十六、金融支出
C23: 十七、援助其他地区支出
C24: 十八、国土海洋气象等支出
C25: 十九、住房保障支出 | D25: =SUM(E25:G25) -> 20 | E25: 20
C26: 二十、粮油物资储备支出
C27: 二十一、国债还本付息支出
C28: 二十二、其他支出
A29: 本年收入合计 | B29: =SUM(B7:B28) -> 5010.96 | C29: 本年支出合计 | D29: =SUM(E29:G29) -> 5010.96 | E29: =SUM(E7:E28) -> 776.27 | F29: =SUM(F7:F28) -> 4234.69
A30: 年初财政拨款结转和结余 | C30: 年末结转和结余
A31: 合计 | B31: =SUM(B29:B30) -> 5010.96 | C31: 合计 | D31: =SUM(D29:D30) -> 5010.96 | E31: =SUM(E29:E30) -> 776.27 | F31: =SUM(F29:F30) -> 4234.69

Sheet 附表3-5
A1: 附表3-5
A2: 部门预算一般公共预算财政拨款支出表
F3: 公开05表
F4: 单位：万元
A5: 科目 | D5: 合计 | E5: 基本支出 | F5: 项目支出
A6: 功能分类科目编码 | C6: 科目名称
A9: 合计 | D9: =SUM(D10+D15+D17+D25) -> 776.27 | E9: =SUM(E10+E15+E17+E25) -> 503.58 | F9: =SUM(F10+F15+F17+F25) -> 272.69
C10: 人员经费 | D10: 456.91 | E10: 456.91
A11: 2010301 | C11: 行政运行 | D11: 340.11 | E11: 340.11
A12: 2101101 | C12: 行政单位医疗 | D12: 24.83 | E12: 24.83
A13: 2210201 | C13: 住房公积金 | D13: 20.00 | E13: 20.00
A14: 2130705 | C14: 对村民委员会和村党支部的补助 | D14: 71.97 | E14: 71.97
C15: 正常公用经费 | D15: 46.67 | E15: 46.67
A16: 2010301 | C16: 行政运行 | D16: 46.67 | E16: 46.67
C17: 专项公用 | D17: =SUM(D18:D24) -> 131.61 | F17: =SUM(F18:F24) -> 131.61
A18: 2010302 | C18: 一般行政管理事务 | D18: 27.00 | F18: 27.00
A19: 2100717 | C19: 计划生育事务 | D19: 56.52 | F19: 56.52
A20: 2082102 | C20: 农村特困人员救助供养指出 | D20: 1.67 | F20: 1.67
A21: 2130705 | C21: 对村民委员会和村党支部的补助 | D21: 38.38 | F21: 38.38
A22: 2080803 | C22: 在乡复原、退伍军人生活补贴 | D22: 0.21 | F22: 0.21
A23: 2080902 | C23: 军队移交政府的离退休人员安置 | D23: 2.63 | F23: 2.63
A24: 2120399 | C24: 其他城乡社区公共设施支出 | D24: 5.20 | F24: 5.20
C25: 专项项目 | D25: =SUM(D26:D30) -> 141.08 | F25: =SUM(F26:F30) -> 141.08
A26: 2010308 | C26: 信访事务 | D26: 30.00 | F26: 30.00
A27: 2130705 | C27: 对村民委员会和村党支部的补助 | D27: 18.00 | F27: 18.00
A28: 2080805 | C28: 义务兵优抚 | D28: 57.92 | F28: 57.92
A29: 2010302 | C29: 一般行政管理事务 | D29: 34.90 | F29: 34.90
A30: 2130152 | C30: 对高校毕业生到基层任职补助 | D30: 0.26 | F30: 0.26

Sheet 附表3-6
A1: 附表3-6
A2: 部门预算一般公共预算财政拨款基本支出表
F3: 公开06表
F4: 单位：万元
A5: 科目 | D5: 基本支出
A6: 经济分类科目编码 | C6: 科目名称 | D6: 合计 | E6: 人员经费 | F6: 公用经费
A7: 合计 | D7: =SUM(D8:D29) -> 503.58 | E7: =SUM(E8:E29) -> 456.91 | F7: =SUM(F8:F29) -> 46.67
A8: 30101 | C8: 基本工资 | D8: 76.5 | E8: 76.5
A9: 30102 | C9: 津贴补贴 | D9: 63.6 | E9: 63.6
A10: 30103 | C10: 奖金 | D10: 2.8 | E10: 2.8
A11: 30104 | C11: 其他社会保障缴费 | D11: 49.33 | E11: 49.33
A12: 30108 | C12: 基本养老保险 | D12: 24.1 | E12: 24.1
A13: 30107 | C13: 绩效工资 | D13: 50.11 | E13: 50.11
A14: 30199 | C14: 其他工资福利支出 | D14: 85 | E14: 85
A15: 30309 | C15: 奖励金 | D15: 0.1 | E15: 0.1
A16: 30311 | C16: 住房公积金 | D16: 20 | E16: 20
A17: 30314 | C17: 采暖补贴 | D17: 13.4 | E17: 13.4
A18: 30399 | C18: 其他对个人和家庭的补助支出 | D18: 71.97 | E18: 71.97
A19: 30201 | C19: 办公费 | D19: 4.2 | F19: 4.2
A20: 30205 | C20: 水费 | D20: 9 | F20: 9
A21: 30206 | C21: 电费 | D21: 9.6 | F21: 9.6
A22: 30207 | C22: 邮电费 | D22: 2.3 | F22: 2.3
A23: 30208 | C23: 办公取暖费 | D23: 7 | F23: 7
A24: 30211 | C24: 差旅费 | D24: 0.5 | F24: 0.5
A25: 30213 | C25: 维修（护）费 | D25: 0.5 | F25: 0.5
A26: 30231 | C26: 公务用车运行维护费 | D26: 9 | F26: 9
A27: 30299 | C27: 商品和服务支出 | D27: 0.28 | F27: 0.28
A28: 30217 | C28: 公务接待费 | D28: 1.1 | F28: 1.1
A29: 30228 | C29: 工会经费 | D29: 3.19 | F29: 3.19

Sheet 附表3-7
A1: 附表3-7
A2: 部门预算政府性基金预算财政拨款支出表
F4: 单位：万元
A5: 科目 | D5: 合计 | E5: 基本支出 | F5: 项目支出
A6: 功能分类科目编码 | C6: 科目名称
A9: 合计 | D9: =SUM(D10:D11) -> 4,232.69 | F9: =SUM(F10:F11) -> 4,232.69
A10: 2120804 | C10: 农村基础设施建设支出 | D10: 104 | F10: 104.00
A11: 2120801 | C11: 征地和拆迁补偿支出 | D11: 4128.69 | F11: 4128.69

Sheet 附表3-8
A1: 附表3-8
A2: 部门预算国有资本经营预算财政拨款支出表
F4: 单位：万元
A5: 科目 | D5: 合计 | E5: 基本支出 | F5: 项目支出
A6: 功能分类科目编码 | C6: 科目名称
A9: 合计
A16: 此表无数据

Sheet 附表3-9
A1: 附表3-9
A2: 部门预算财政拨款“三公”经费支出表
E3: 公开07表
E4: 单位：万元
A5: 项目 | B5: 资金来源
B6: 合计 | C6: 一般公共预算财政拨款 | D6: 政府性基金财政拨款 | E6: 国有资本经营预算财政拨款
A7: 合计 | B7: =SUM(C7:E7) -> 10.1 | C7: =SUM(C9+C12) -> 10.1
A8: 一、因公出国（境）费
A9: 二、公务用车购置及运行费 | B9: 9 | C9: 9
A10: 其中：公务用车购置费
A11: 公务用车运行费 | B11: 9 | C11: 9
A12: 三、公务接待费 | B12: 1.1 | C12: 1.1
